bitfinex/quotes_BTCUSD_20240623
["timestamp","ask_amount","ask_price","bid_price","bid_amount"]
[1719184301098,2.10524401,63773.0,63772.0,0.002935]
[1719184301417,1.49173787,63773.0,63772.0,0.000935]
[1719184301612,1.54673787,63773.0,63772.0,0.000935]
[1719184302191,1.54673787,63773.0,63772.0,0.001935]
[1719184302192,1.49373787,63773.0,63772.0,0.001935]
[1719184302556,1.37043296,63773.0,63772.0,0.001935]
[1719184302775,1.38702274,63773.0,63772.0,0.000935]
[1719184303133,1.38902274,63773.0,63772.0,0.000935]
[1719184303352,1.50641583,63773.0,63772.0,0.000935]
[1719184303845,1.4564337,63773.0,63772.0,0.000935]
[1719184304039,1.6662397,63773.0,63772.0,0.000935]
[1719184305342,1.5468621,63773.0,63772.0,0.000935]
[1719184305687,1.5488621,63773.0,63772.0,0.000935]
[1719184306342,1.5468621,63773.0,63772.0,0.000935]
[1719184306564,1.5478621,63773.0,63772.0,0.000935]
[1719184306769,1.4848929,63773.0,63772.0,0.000935]
[1719184306947,1.54817114,63773.0,63772.0,0.000935]
[1719184307152,1.4838929,63773.0,63772.0,0.000935]
[1719184307349,1.54716008,63773.0,63772.0,0.000935]
[1719184307570,1.54816008,63773.0,63772.0,0.000935]
[1719184308996,1.66549112,63773.0,63772.0,0.000935]
[1719184309192,1.54816008,63773.0,63772.0,0.000935]
[1719184309755,1.66549112,63773.0,63772.0,0.000935]
[1719184310005,1.6627944,63773.0,63772.0,0.000935]
[1719184310203,1.54548349,63773.0,63772.0,0.000935]
[1719184311920,1.49248349,63773.0,63772.0,0.000935]
[1719184312076,1.54548349,63773.0,63772.0,0.000935]
[1719184312278,1.49248349,63773.0,63772.0,0.000935]
[1719184312524,1.54548349,63773.0,63772.0,0.000935]
[1719184312675,1.63932653,63773.0,63772.0,0.000935]
[1719184313093,1.64032308,63773.0,63772.0,0.000935]
[1719184313289,1.64032308,63773.0,63772.0,0.01589419]
[1719184313290,1.43138012,63773.0,63772.0,0.01589419]
[1719184313517,1.55476462,63773.0,63772.0,0.01589419]
[1719184313713,1.48438012,63773.0,63772.0,0.01589419]
[1719184313913,1.48438012,63773.0,63772.0,0.000935]
[1719184314908,1.55476462,63773.0,63772.0,0.000935]
[1719184315107,1.48438012,63773.0,63772.0,0.000935]
[1719184315314,1.55476042,63773.0,63772.0,0.000935]
[1719184315514,1.48438012,63773.0,63772.0,0.000935]
[1719184316158,1.4227929,63773.0,63772.0,0.000935]
[1719184316362,1.4841181,63773.0,63772.0,0.000935]
[1719184316583,1.48411759,63773.0,63772.0,0.000935]
[1719184317108,1.57796714,63773.0,63772.0,0.000935]
[1719184317851,1.57808105,63773.0,63772.0,0.000935]
[1719184319234,1.4227929,63773.0,63772.0,0.000935]
[1719184319526,1.57811055,63773.0,63772.0,0.000935]
[1719184320240,1.57811055,63773.0,63772.0,0.01589419]
[1719184320462,0.27490743,63773.0,63772.0,0.01589419]
[1719184320663,0.27490743,63773.0,63772.0,0.15659419]
[1719184320664,0.39083652,63773.0,63772.0,0.15659419]
[1719184321109,0.34182323,63773.0,63772.0,0.15659419]
[1719184321432,0.39098799,63773.0,63772.0,0.15659419]
[1719184321672,0.39063004,63773.0,63772.0,0.15659419]
[1719184321857,0.39063026,63773.0,63772.0,0.15659419]
[1719184322056,0.70424226,63773.0,63772.0,0.15659419]
[1719184322282,0.40805597,63773.0,63772.0,0.15659419]
[1719184322618,0.40605597,63773.0,63772.0,0.15659419]
[1719184322798,0.45905597,63773.0,63772.0,0.15659419]
[1719184323012,0.45990597,63773.0,63772.0,0.15859419]
[1719184323630,0.45890597,63773.0,63772.0,0.15859419]
[1719184323836,0.45890597,63773.0,63772.0,0.16159419]
[1719184324295,0.77251797,63773.0,63772.0,0.02089419]
[1719184324511,1.08612997,63773.0,63772.0,0.003935]
[1719184324723,1.08612997,63773.0,63772.0,0.01889419]
[1719184324724,0.95446978,63773.0,63772.0,0.01889419]
[1719184324889,1.01813763,63773.0,63772.0,0.02289419]
[1719184325338,1.01813745,63773.0,63772.0,0.007935]
[1719184326204,1.11205802,63773.0,63772.0,0.02289419]
[1719184326421,1.11108489,63773.0,63772.0,0.02289419]
[1719184326632,1.01715731,63773.0,63772.0,0.02289419]
[1719184326838,1.11108489,63773.0,63772.0,0.007935]
[1719184327224,1.42469689,63773.0,63772.0,0.007935]
[1719184327511,1.33076931,63773.0,63772.0,0.007935]
[1719184327774,1.48333043,63773.0,63772.0,0.007935]
[1719184328001,1.60071614,63773.0,63772.0,0.007935]
[1719184330153,1.48331025,63773.0,63772.0,0.007935]
[1719184331079,1.4829019,63773.0,63772.0,0.007935]
[1719184331700,1.4206429,63773.0,63772.0,0.007935]
[1719184333169,1.38044418,63773.0,63772.0,0.007935]
[1719184333644,1.38044418,63773.0,63772.0,0.02289419]
[1719184333645,1.43344418,63773.0,63772.0,0.02289419]
[1719184334215,1.43344418,63773.0,63772.0,0.007935]
[1719184334409,1.4206429,63773.0,63772.0,0.02289419]
[1719184338006,1.4206429,63773.0,63772.0,0.007935]
[1719184338601,1.4206429,63773.0,63772.0,0.02289419]
[1719184338757,1.1070309,63773.0,63772.0,0.02289419]
[1719184338956,1.1070309,63773.0,63772.0,0.007935]
[1719184339460,1.16988188,63773.0,63772.0,0.007935]
[1719184339869,1.1070309,63773.0,63772.0,0.007935]
[1719184339982,1.16988301,63773.0,63772.0,0.007935]
[1719184340392,1.16977084,63773.0,63772.0,0.007935]
[1719184340593,1.11677084,63773.0,63772.0,0.02289419]
[1719184340853,1.16977084,63773.0,63772.0,0.02289419]
[1719184341156,1.16977084,63773.0,63772.0,0.007935]
[1719184341974,1.11677084,63773.0,63772.0,0.16599419]
[1719184342168,1.16977084,63773.0,63772.0,0.16599419]
[1719184342923,1.16977084,63773.0,63772.0,0.151035]
[1719184343295,1.17084076,63773.0,63772.0,0.16599419]
[1719184345318,1.17084076,63773.0,63772.0,0.151035]
[1719184346101,1.17084076,63773.0,63772.0,0.16599419]
[1719184346309,1.17084076,63773.0,63772.0,0.151035]
[1719184346509,1.17038253,63773.0,63772.0,0.151035]
[1719184346908,1.17038253,63773.0,63772.0,0.007935]
[1719184349712,1.17034344,63773.0,63772.0,0.02289419]
[1719184350017,1.17034344,63773.0,63772.0,0.16599419]
[1719184350018,0.11743978,63773.0,63772.0,0.16599419]
[1719184350128,0.30132825,63773.0,63772.0,0.16599419]
[1719184350333,0.23355177,63773.0,63772.0,0.16599419]
[1719184350529,0.23355177,63773.0,63772.0,0.96003619]
[1719184350530,0.0307158,63773.0,63772.0,0.96003619]
[1719184351318,0.01412602,63773.0,63772.0,0.96003619]
[1719184351524,0.01412602,63773.0,63772.0,0.95603619]
[1719184351943,0.01412602,63773.0,63772.0,0.96003619]
[1719184352274,0.01412602,63773.0,63772.0,0.95603619]
[1719184352483,0.01421896,63773.0,63772.0,0.97003619]
[1719184353167,0.01421896,63773.0,63772.0,0.96703619]
[1719184353483,0.01421896,63773.0,63772.0,0.97003619]
[1719184353892,0.01421896,63773.0,63772.0,1.28065319]
[1719184354122,0.00085,63773.0,63772.0,1.63321431]
[1719184354306,0.00085,63773.0,63772.0,1.44721431]
[1719184360135,0.00085,63773.0,63772.0,1.13359731]
[1719184360571,0.00085,63773.0,63772.0,0.65741919]
[1719184361021,0.0206541,63773.0,63772.0,0.65741919]
[1719184361229,0.00085,63773.0,63772.0,0.65741919]
[1719184362247,0.0206541,63773.0,63772.0,0.65741919]
[1719184362441,0.00085,63773.0,63772.0,0.65741919]
[1719184362977,0.03321941,63773.0,63772.0,0.65741919]
[1719184364691,0.03329636,63773.0,63772.0,0.65741919]
[1719184364826,0.03332149,63773.0,63772.0,0.65741919]
[1719184365235,0.08632149,63773.0,63772.0,0.65741919]
[1719184365440,0.08632149,63773.0,63772.0,0.66741919]
[1719184367057,0.0206541,63773.0,63772.0,0.66741919]
[1719184367482,0.00085,63773.0,63772.0,0.66741919]
[1719184368053,0.00085,63773.0,63772.0,0.98103619]
[1719184372850,0.30934736,63785.0,63784.0,0.00995919]
[1719184373065,0.37740198,63785.0,63784.0,0.00995919]
[1719184373620,0.37740198,63785.0,63784.0,0.01495919]
[1719184373621,0.53417798,63785.0,63784.0,0.01495919]
[1719184374107,0.53417804,63785.0,63784.0,0.01495919]
[1719184374301,0.156779,63784.0,63783.0,0.01495919]
[1719184374507,0.156781,63783.0,63782.0,0.01495919]
[1719184374703,0.22483568,63783.0,63782.0,0.01495919]
[1719184376032,0.53839868,63783.0,63782.0,0.01495919]
[1719184376228,0.53839868,63783.0,63782.0,0.02095919]
[1719184377187,0.53737578,63783.0,63782.0,0.006]
[1719184377609,0.53737577,63783.0,63782.0,0.006]
[1719184378173,0.58793472,63783.0,63782.0,0.006]
[1719184379209,0.58793472,63783.0,63782.0,0.02095919]
[1719184379410,0.58793472,63783.0,63782.0,0.006]
[1719184380291,0.53736846,63783.0,63782.0,0.006]
[1719184380496,0.58792235,63783.0,63782.0,0.006]
[1719184381958,0.61422235,63783.0,63782.0,0.006]
[1719184382608,0.549644,63783.0,63782.0,0.006]
[1719184382748,0.61441401,63783.0,63782.0,0.003]
[1719184382952,0.470352,63782.0,63781.0,0.01495919]
[1719184383172,0.53512201,63782.0,63781.0,0.01495919]
[1719184384032,0.58812201,63782.0,63781.0,0.01495919]
[1719184385304,0.58812201,63782.0,63781.0,0.01695919]
[1719184385532,0.58812201,63782.0,63781.0,0.01895919]
[1719184385730,0.58840614,63782.0,63781.0,0.01695919]
[1719184385969,0.35607495,63782.0,63781.0,0.01695919]
[1719184386195,0.35607452,63782.0,63781.0,0.01895919]
[1719184386332,0.51285852,63782.0,63781.0,0.01895919]
[1719184386877,0.90833317,63782.0,63781.0,0.004]
[1719184387428,0.90848909,63782.0,63781.0,0.004]
[1719184388864,0.9082725,63782.0,63781.0,0.004]
[1719184392049,1.71267268,63782.0,63781.0,0.004]
[1719184392283,1.47440601,63782.0,63781.0,0.004]
[1719184392497,1.78797401,63782.0,63781.0,0.004]
[1719184393098,1.78797401,63782.0,63781.0,0.002]
[1719184393521,0.84613,63773.0,63772.0,0.000935]
[1719184393690,1.03461835,63773.0,63772.0,0.000935]
[1719184393979,1.05441637,63773.0,63772.0,0.000935]
[1719184394478,0.98392545,63773.0,63772.0,0.000935]
[1719184395158,0.98392545,63773.0,63772.0,0.008935]
[1719184395159,0.98544704,63773.0,63772.0,0.008935]
[1719184395288,0.86592802,63773.0,63772.0,0.02389419]
[1719184395490,0.92334925,63773.0,63772.0,0.017935]
[1719184396392,0.92334925,63773.0,63772.0,0.03289419]
[1719184396827,0.92334925,63773.0,63772.0,0.017935]
[1719184397360,0.85682802,63773.0,63772.0,0.017935]
[1719184397559,0.9241384,63773.0,63772.0,0.017935]
[1719184397903,1.2377504,63773.0,63772.0,0.017935]
[1719184398266,1.23817147,63773.0,63772.0,0.017935]
[1719184399827,1.23817147,63773.0,63772.0,0.008935]
[1719184400289,1.77416749,63773.0,63772.0,0.010935]
[1719184400435,1.70434459,63773.0,63772.0,0.010935]
[1719184400635,1.74014459,63773.0,63772.0,0.010935]
[1719184400859,1.76644459,63773.0,63772.0,0.002935]
[1719184401036,1.71344459,63773.0,63772.0,0.004935]
[1719184401236,1.76683568,63773.0,63772.0,0.004935]
[1719184401439,0.87195056,63773.0,63772.0,0.004935]
[1719184401648,0.12956245,63773.0,63772.0,0.09753937]
[1719184401853,0.24544657,63773.0,63772.0,0.09753937]
[1719184404199,0.07279802,63773.0,63772.0,0.24143937]
[1719184404431,0.0359501,63773.0,63772.0,0.24143937]
[1719184404678,0.07279802,63773.0,63772.0,0.24143937]
[1719184404915,0.08894275,63773.0,63772.0,0.24143937]
[1719184407848,0.0888265,63773.0,63772.0,0.24143937]
[1719184408048,0.0358265,63773.0,63772.0,0.24143937]
[1719184408248,0.0888265,63773.0,63772.0,0.24143937]
[1719184408656,0.0358265,63773.0,63772.0,0.24143937]
[1719184408857,0.0888265,63773.0,63772.0,0.39824737]
[1719184409340,0.0358265,63773.0,63772.0,1.03548137]
[1719184409782,0.01602848,63773.0,63772.0,1.03548137]
[1719184409986,0.053,63779.0,63778.0,0.16205919]
[1719184410191,0.06928672,63779.0,63778.0,0.16205919]
[1719184410389,0.08907728,63779.0,63778.0,0.16205919]
[1719184412199,0.08907728,63779.0,63778.0,0.16705919]
[1719184413420,0.07279035,63779.0,63778.0,0.17305919]
[1719184413653,0.08752932,63779.0,63778.0,0.17305919]
[1719184413861,0.08747648,63779.0,63778.0,0.17305919]
[1719184415427,0.03447648,63779.0,63778.0,0.17305919]
[1719184415628,0.08747648,63779.0,63778.0,0.17305919]
[1719184416414,0.08747284,63779.0,63778.0,0.17305919]
[1719184419554,0.08708864,63779.0,63778.0,0.17305919]
[1719184422685,0.07279035,63779.0,63778.0,0.17305919]
[1719184422900,0.08719325,63779.0,63778.0,0.17305919]
[1719184423132,0.07279035,63779.0,63778.0,0.17305919]
[1719184423369,0.0871945,63779.0,63778.0,0.17305919]
[1719184425944,0.087175,63779.0,63778.0,0.17305919]
[1719184427259,0.243966,63779.0,63778.0,0.011]
[1719184427430,0.87113,63779.0,63778.0,0.02595919]
[1719184427849,0.94161138,63779.0,63778.0,0.02595919]
[1719184428296,0.313592,63777.0,63773.0,0.01495919]
[1719184428496,0.23222846,63779.0,63772.0,0.01589419]
[1719184428497,0.209806,63773.0,63772.0,0.01589419]
[1719184428766,0.53780265,63773.0,63772.0,0.01589419]
[1719184429103,0.87191707,63773.0,63772.0,0.01589419]
[1719184429579,0.87191707,63773.0,63772.0,0.000935]
[1719184429774,0.87191707,63773.0,63772.0,0.01589419]
[1719184430324,0.92379543,63773.0,63772.0,0.01589419]
[1719184430927,0.92379543,63773.0,63772.0,0.002935]
[1719184431347,0.92379543,63773.0,63772.0,0.01989419]
[1719184432193,0.92418304,63773.0,63772.0,0.01989419]
[1719184432455,0.92418304,63773.0,63772.0,0.004935]
[1719184432606,0.92418307,63773.0,63772.0,0.004935]
[1719184435156,0.92418894,63773.0,63772.0,0.004935]
[1719184438281,0.97920227,63773.0,63772.0,0.004935]
[1719184438486,0.99464335,63773.0,63772.0,0.004935]
[1719184439911,0.99464335,63773.0,63772.0,0.000935]
[1719184441019,0.92730497,63773.0,63772.0,0.000935]
[1719184441189,0.99484853,63773.0,63772.0,0.000935]
[1719184441417,0.92730498,63773.0,63772.0,0.000935]
[1719184441573,0.99484854,63773.0,63772.0,0.000935]
[1719184442755,0.94184854,63773.0,63772.0,0.01589419]
[1719184442954,0.99484854,63773.0,63772.0,0.01589419]
[1719184443267,0.99484854,63773.0,63772.0,0.000935]
[1719184443812,0.92433734,63773.0,63772.0,0.000935]
[1719184444027,0.94284327,63773.0,63772.0,0.000935]
[1719184444314,0.99483274,63773.0,63772.0,0.000935]
[1719184446225,0.99483274,63773.0,63772.0,0.01589419]
[1719184446617,0.62822074,63773.0,63772.0,0.09353937]
[1719184446820,0.2451265,63773.0,63772.0,0.09353937]
[1719184446996,0.24564581,63773.0,63772.0,0.09353937]
[1719184447195,0.03583981,63773.0,63772.0,0.23713937]
[1719184447377,0.08883981,63773.0,63772.0,0.23713937]
[1719184447617,0.03583981,63773.0,63772.0,0.23713937]
[1719184447811,0.08883981,63773.0,63772.0,0.23713937]
[1719184448459,0.08883981,63773.0,63772.0,0.23813937]
[1719184448640,0.24564581,63773.0,63772.0,0.23813937]
[1719184448856,0.24414581,63773.0,63772.0,0.23813937]
[1719184449323,0.08733981,63773.0,63772.0,0.23813937]
[1719184449842,0.07129433,63773.0,63772.0,0.23813937]
[1719184450097,0.08745421,63773.0,63772.0,0.23813937]
[1719184450255,0.07129433,63773.0,63772.0,0.23813937]
[1719184450457,0.08777046,63773.0,63772.0,0.23813937]
[1719184451082,0.03477046,63773.0,63772.0,0.23813937]
[1719184451285,0.08777046,63773.0,63772.0,0.23813937]
[1719184452221,0.08862046,63773.0,63772.0,0.23813937]
[1719184453188,0.03634677,63773.0,63772.0,0.23813937]
[1719184454627,0.03634677,63773.0,63772.0,0.16049419]
[1719184455624,0.08934677,63773.0,63772.0,0.16049419]
[1719184456272,0.08904232,63773.0,63772.0,0.16049419]
[1719184457461,0.0725843,63773.0,63772.0,0.16049419]
[1719184457660,0.08928003,63773.0,63772.0,0.16049419]
[1719184459475,0.0725843,63773.0,63772.0,0.16049419]
[1719184459660,0.08928997,63773.0,63772.0,0.16049419]
[1719184459793,0.0725843,63773.0,63772.0,0.16049419]
[1719184459997,0.08928997,63773.0,63772.0,0.16049419]
[1719184461204,0.03628997,63773.0,63772.0,0.16049419]
[1719184461404,0.08928997,63773.0,63772.0,0.16049419]
[1719184462647,0.08930619,63773.0,63772.0,0.16049419]
[1719184465271,0.03630619,63773.0,63772.0,0.16049419]
[1719184465417,0.08930619,63773.0,63772.0,0.16049419]
[1719184465618,0.08919566,63773.0,63772.0,0.16049419]
[1719184468823,0.08939264,63773.0,63772.0,0.16049419]
[1719184471806,0.0725843,63773.0,63772.0,0.16049419]
[1719184472022,0.08939085,63773.0,63772.0,0.16049419]
[1719184476441,0.08930157,63773.0,63772.0,0.16049419]
[1719184478001,0.07249502,63773.0,63772.0,0.16049419]
[1719184478227,0.0892856,63773.0,63772.0,0.16049419]
[1719184478438,0.07249502,63773.0,63772.0,0.16049419]
[1719184478808,0.15990796,63773.0,63772.0,0.16049419]
[1719184479012,0.14260662,63773.0,63772.0,0.16049419]
[1719184479812,0.14159445,63773.0,63772.0,0.16049419]
[1719184480007,0.212141,63773.0,63772.0,0.16049419]
[1719184480452,0.368947,63773.0,63772.0,0.001935]
[1719184480663,0.368947,63773.0,63772.0,0.01689419]
[1719184480869,0.29840045,63773.0,63772.0,0.01689419]
[1719184481260,0.36905636,63773.0,63772.0,0.01689419]
[1719184481786,0.36905761,63773.0,63772.0,0.01689419]
[1719184482120,0.3690573,63773.0,63772.0,0.01689419]
[1719184482499,0.29851086,63773.0,63772.0,0.01689419]
[1719184484411,0.22930102,63773.0,63772.0,0.01689419]
[1719184484563,0.29861878,63773.0,63772.0,0.01689419]
[1719184485099,0.61223078,63773.0,63772.0,0.01689419]
[1719184486416,0.61223078,63773.0,63772.0,0.001935]
[1719184487189,0.61223078,63773.0,63772.0,0.01689419]
[1719184487512,0.61186805,63773.0,63772.0,0.01689419]
[1719184487846,0.70593951,63773.0,63772.0,0.001935]
[1719184488035,0.61186633,63773.0,63772.0,0.001935]
[1719184489224,0.61231996,63773.0,63772.0,0.001935]
[1719184489990,0.72991144,63773.0,63772.0,0.001935]
[1719184490649,0.73011416,63773.0,63772.0,0.001935]
[1719184492131,0.67711416,63773.0,63772.0,0.001935]
[1719184492464,0.73011416,63773.0,63772.0,0.01689419]
[1719184492661,0.73011416,63773.0,63772.0,0.001935]
[1719184493661,0.73078782,63773.0,63772.0,0.001935]
[1719184494499,0.67778782,63773.0,63772.0,0.001935]
[1719184494716,0.73078782,63773.0,63772.0,0.001935]
[1719184495270,0.73078782,63773.0,63772.0,0.01689419]
[1719184495933,0.73078782,63773.0,63772.0,0.001935]
[1719184496829,0.73088747,63773.0,63772.0,0.001935]
[1719184497326,0.73088746,63773.0,63772.0,0.001935]
[1719184497669,1.04449946,63773.0,63772.0,0.001935]
[1719184499321,1.04449946,63773.0,63772.0,0.000935]
[1719184499508,1.04549946,63773.0,63772.0,0.000935]
[1719184499920,1.04555979,63773.0,63772.0,0.000935]
[1719184500261,0.99255979,63773.0,63772.0,0.000935]
[1719184500415,1.04555979,63773.0,63772.0,0.000935]
[1719184500921,1.39309888,63773.0,63772.0,0.000935]
[1719184501118,1.42989888,63773.0,63772.0,0.000935]
[1719184501519,1.45619888,63773.0,63772.0,0.000935]
[1719184501940,1.55619888,63773.0,63772.0,0.000935]
[1719184502140,1.55576971,63773.0,63772.0,0.000935]
[1719184502427,2.01050688,63773.0,63772.0,0.000935]
[1719184504000,2.00950688,63773.0,63772.0,0.000935]
[1719184504199,2.01250688,63773.0,63772.0,0.000935]
[1719184504423,1.87138171,63773.0,63772.0,0.000935]
[1719184504736,1.96572171,63773.0,63772.0,0.000935]
[1719184504943,2.76936671,63773.0,63772.0,0.000935]
[1719184505158,2.78486363,63773.0,63772.0,0.000935]
[1719184505598,2.78486402,63773.0,63772.0,0.000935]
[1719184506026,2.78486402,63773.0,63756.0,0.07764518]
[1719184506027,0.784227,63757.0,63756.0,0.07764518]
[1719184506248,0.86969588,63757.0,63756.0,0.07764518]
[1719184506454,0.89280983,63757.0,63756.0,0.07764518]
[1719184506930,0.89290643,63757.0,63756.0,0.07764518]
[1719184507426,0.89290643,63757.0,63756.0,0.08064518]
[1719184507695,0.89290643,63757.0,63756.0,0.003]
[1719184507696,1.39495855,63757.0,63756.0,0.003]
[1719184508178,1.39495855,63757.0,63756.0,0.006]
[1719184508421,1.39495855,63757.0,63756.0,0.003]
[1719184508888,1.39495855,63757.0,63756.0,0.004]
[1719184508889,1.34012726,63757.0,63756.0,0.004]
[1719184509125,1.33412726,63757.0,63756.0,0.003]
[1719184509353,0.156855,63753.0,63752.0,0.000935]
[1719184509561,0.86209932,63753.0,63752.0,0.000935]
[1719184509910,0.88512314,63753.0,63752.0,0.000935]
[1719184511498,0.8847058,63753.0,63752.0,0.000935]
[1719184514473,0.8847058,63753.0,63752.0,0.01589419]
[1719184514474,0.88440136,63753.0,63752.0,0.01589419]
[1719184514649,0.86029882,63753.0,63752.0,0.000935]
[1719184514858,0.88440108,63753.0,63752.0,0.000935]
[1719184515472,0.83140108,63753.0,63752.0,0.01589419]
[1719184515722,0.88440108,63753.0,63752.0,0.09459419]
[1719184515872,0.83140108,63753.0,63752.0,0.09459419]
[1719184516035,0.88469516,63753.0,63752.0,0.09459419]
[1719184516734,0.88469516,63753.0,63752.0,0.094401]
[1719184517100,0.88469516,63753.0,63752.0,0.07944181]
[1719184517777,0.88479891,63753.0,63752.0,0.07944181]
[1719184518235,0.88479891,63753.0,63752.0,0.094401]
[1719184520362,0.88479891,63753.0,63752.0,0.00074181]
[1719184520515,0.86029882,63753.0,63752.0,0.00074181]
[1719184520712,0.88476275,63753.0,63752.0,0.00074181]
[1719184520947,1.35103387,63753.0,63752.0,0.00074181]
[1719184522023,1.32656994,63753.0,63752.0,0.00074181]
[1719184522222,1.35115027,63753.0,63752.0,0.00074181]
[1719184522430,1.34192407,63753.0,63752.0,0.00074181]
[1719184523496,1.40265244,63753.0,63752.0,0.00074181]
[1719184523832,1.43880057,63753.0,63752.0,0.00074181]
[1719184524035,1.31734374,63753.0,63752.0,0.00074181]
[1719184524252,1.40300777,63753.0,63752.0,0.00074181]
[1719184526819,1.40302649,63753.0,63752.0,0.00074181]
[1719184527743,1.40279101,63753.0,63752.0,0.00074181]
[1719184529886,1.40307643,63753.0,63752.0,0.00074181]
[1719184532947,1.40312166,63753.0,63752.0,0.00074181]
[1719184533337,1.31710826,63753.0,63752.0,0.00074181]
[1719184533562,1.40306912,63753.0,63752.0,0.00074181]
[1719184533763,1.35006912,63753.0,63752.0,0.00074181]
[1719184533966,1.40306912,63753.0,63752.0,0.00074181]
[1719184534394,1.42472426,63753.0,63752.0,0.00074181]
[1719184535910,1.37172426,63753.0,63752.0,0.00074181]
[1719184536117,1.42483294,63753.0,63752.0,0.00074181]
[1719184538980,1.3387634,63753.0,63752.0,0.00074181]
[1719184539299,1.42224266,63753.0,63752.0,0.00074181]
[1719184539913,1.36924266,63753.0,63752.0,0.00074181]
[1719184540116,1.42224266,63753.0,63752.0,0.00074181]
[1719184541282,1.42188674,63753.0,63752.0,0.00074181]
[1719184541491,1.36888674,63753.0,63752.0,0.00074181]
[1719184541691,1.42188674,63753.0,63752.0,0.00074181]
[1719184541897,1.36888674,63753.0,63752.0,0.00074181]
[1719184542248,1.28540748,63753.0,63752.0,0.00074181]
[1719184542442,1.43921135,63753.0,63752.0,0.00074181]
[1719184542648,1.49222558,63753.0,63752.0,0.00074181]
[1719184542822,1.43922558,63753.0,63752.0,0.00074181]
[1719184543022,1.49222558,63753.0,63752.0,0.00074181]
[1719184543578,1.42183158,63753.0,63752.0,0.00074181]
[1719184544637,1.51569024,63753.0,63752.0,0.00074181]
[1719184545149,1.33840748,63753.0,63752.0,0.00074181]
[1719184545357,1.51586158,63753.0,63752.0,0.00074181]
[1719184545559,1.42195797,63753.0,63752.0,0.00074181]
[1719184547398,1.42198004,63753.0,63752.0,0.00074181]
[1719184547605,1.53935955,63753.0,63752.0,0.00074181]
[1719184548473,1.42197991,63753.0,63752.0,0.00074181]
[1719184548683,1.42282991,63753.0,63752.0,0.00074181]
[1719184549912,1.36982991,63753.0,63752.0,0.00074181]
[1719184550118,1.42282991,63753.0,63752.0,0.00074181]
[1719184551537,1.39907836,63753.0,63752.0,0.00074181]
[1719184551782,1.422836,63753.0,63752.0,0.00074181]
[1719184551994,1.42283165,63753.0,63752.0,0.00074181]
[1719184552400,1.42354055,63753.0,63752.0,0.00074181]
[1719184554818,1.36372772,63753.0,63752.0,0.00074181]
[1719184555004,1.42354337,63753.0,63752.0,0.00074181]
[1719184558972,1.52354337,63753.0,63752.0,0.00074181]
[1719184560450,1.93159337,63753.0,63752.0,0.00074181]
[1719184560665,1.93159337,63753.0,63745.0,0.146]
[1719184560666,0.784375,63745.0,63744.0,0.000935]
[1719184560879,0.784375,63745.0,63733.0,0.07764518]
[1719184560880,0.156894,63737.0,63736.0,0.1379]
[1719184561055,0.8685486,63737.0,63736.0,0.0764]
[1719184561301,0.784497,63735.0,63734.0,0.1379]
[1719184561513,0.470706,63734.0,63733.0,0.07764518]
[1719184561719,1.23539389,63734.0,63733.0,0.07764518]
[1719184561942,1.36757714,63734.0,63733.0,0.07764518]
[1719184562145,1.09845,63726.0,63725.0,0.21554518]
[1719184562351,1.32803462,63726.0,63725.0,0.21554518]
[1719184562568,1.40232689,63726.0,63725.0,0.21554518]
[1719184563228,1.34274272,63726.0,63725.0,0.21554518]
[1719184563429,1.40327108,63726.0,63725.0,0.22054518]
[1719184563877,1.40327108,63726.0,63725.0,0.005]
[1719184564085,1.50327108,63726.0,63725.0,0.005]
[1719184564294,1.65299015,63726.0,63725.0,0.005]
[1719184564460,1.65299015,63726.0,63725.0,0.01]
[1719184565261,1.5927061,63726.0,63725.0,0.01]
[1719184565440,1.5927061,63726.0,63725.0,0.005]
[1719184565635,1.5927061,63726.0,63719.0,0.1451]
[1719184565636,0.784682,63720.0,63719.0,0.1451]
[1719184565868,0.86194981,63720.0,63719.0,0.1451]
[1719184566379,0.87665791,63720.0,63719.0,0.1451]
[1719184567088,0.88165791,63720.0,63719.0,0.1451]
[1719184567293,0.87665791,63720.0,63719.0,0.1451]
[1719184567709,0.82365791,63720.0,63719.0,0.16005919]
[1719184567910,0.87665791,63720.0,63719.0,0.16005919]
[1719184568271,0.88065791,63720.0,63719.0,0.16005919]
[1719184568722,0.88465791,63720.0,63719.0,0.16005919]
[1719184569418,0.88531172,63720.0,63719.0,0.16005919]
[1719184569588,0.8603901,63720.0,63719.0,0.1451]
[1719184569732,0.88531334,63720.0,63719.0,0.1451]
[1719184570623,0.88531334,63720.0,63719.0,0.16005919]
[1719184570776,0.51844034,63720.0,63719.0,0.16005919]
[1719184570995,0.0227081,63720.0,63719.0,0.31699819]
[1719184571361,0.04762203,63720.0,63719.0,0.31699819]
[1719184571560,0.153,63727.0,63726.0,0.01495919]
[1719184571772,0.053,63727.0,63726.0,0.23920437]
[1719184571982,0.156903,63734.0,63731.0,0.01495919]
[1719184572186,0.1569,63735.0,63733.0,0.09260437]
[1719184572406,0.053,63734.0,63733.0,0.07764518]
[1719184572621,0.153,63734.0,63733.0,0.07764518]
[1719184573174,0.153,63734.0,63733.0,0.09260437]
[1719184573377,0.158,63734.0,63733.0,0.07764518]
[1719184573585,0.153,63734.0,63733.0,0.07764518]
[1719184573959,0.158,63734.0,63733.0,0.07764518]
[1719184574381,0.162,63734.0,63733.0,0.07764518]
[1719184574887,0.1627089,63734.0,63733.0,0.07764518]
[1719184575517,0.1627089,63734.0,63733.0,0.09260437]
[1719184579151,0.33325013,63734.0,63732.0,0.1466]
[1719184579352,0.156904,63733.0,63732.0,0.1466]
[1719184579556,0.570713,63733.0,63732.0,0.1466]
[1719184579767,0.570713,63733.0,63732.0,0.0644]
[1719184579768,0.58435578,63733.0,63732.0,0.0644]
[1719184580184,0.89816478,63733.0,63732.0,0.0644]
[1719184580386,0.156914,63729.0,63728.0,0.01495919]
[1719184580738,0.1705255,63729.0,63728.0,0.01495919]
[1719184581468,0.784582,63728.0,63727.0,0.0642]
[1719184581708,0.156926,63724.0,63723.0,0.01495919]
[1719184581921,0.470779,63724.0,63723.0,0.01495919]
[1719184582119,0.49133941,63724.0,63723.0,0.01495919]
[1719184582340,0.50489006,63724.0,63723.0,0.01495919]
[1719184582547,0.156934,63721.0,63720.0,0.1442]
[1719184582733,0.23049441,63721.0,63720.0,0.1442]
[1719184583117,0.24404506,63721.0,63720.0,0.1442]
[1719184584293,0.22348465,63721.0,63720.0,0.1442]
[1719184584493,0.24297341,63721.0,63720.0,0.1442]
[1719184584758,0.24297341,63721.0,63720.0,0.15915919]
[1719184584896,0.24297341,63721.0,63720.0,0.1442]
[1719184585520,0.24297341,63721.0,63720.0,0.15915919]
[1719184585729,0.55684141,63721.0,63720.0,0.1452]